[Event "11th Arad Open 2018"]
[Site "Arad"]
[Date "2018.08.06"]
[Round "3"]
[White "Roubalik, Jakub"]
[Black "Vujacic, Borivoje"]
[Result "1-0"]
[ECO "D86"]
[WhiteElo "2402"]
[BlackElo "2235"]
[Annotator "NA"]
[PlyCount "69"]
[EventDate "2018.08.05"]
[EventType "swiss"]
[EventCountry "ROU"]
[SourceTitle "playchess.com"]
[Source "ChessBase"]
[SourceQuality "1"]
[TimeControl "40/5400+30:1800+30"]

1. d4 {[%emt 0:00:00]} Nf6 {[%emt 0:00:00]} 2. c4 {[%emt 0:00:00]} g6 {[%emt 0:00:21]} 3. Nc3 {[%emt 0:00:00]} d5 {[%emt 0:00:15]} 4. cxd5 {[%emt 0:00:00]} Nxd5 {[%emt 0:00:26]} 5. e4 {[%emt 0:00:05]} Nxc3 {[%emt 0:00:13]} 6. bxc3 {[%emt 0:00:04]} Bg7 {[%emt 0:00:05]} 7. Bc4 {[%emt 0:01:39]} c5 {[%emt 0:00:09]} 8. Ne2 {[%emt 0:00:11]} O-O {[%emt 0:02:33]} 9. O-O {[%emt 0:00:29]} Nc6 {[%emt 0:00:04]} 10. Be3 {[%emt 0:00:06]} Qc7 {[%emt 0:00:12]} 11. Rc1 {[%emt 0:01:31]} b6 {[%emt 0:05:12]} 12. Qd2 {[%emt 0:01:36]} Na5 {[%emt 0:07:20]} 13. Bd3 {[%emt 0:00:38]} c4 {[%emt 0:00:57]} 14. Bc2 {[%emt 0:00:49]} e5 {[%emt 0:03:36]} 15. Bh6 {[%emt 0:06:35]} Nb7 {[%emt 0:15:04]} 16. Bxg7 {[%emt 0:01:22]} Kxg7 {[%emt 0:00:07]} 17. f4 {[%emt 0:02:15]} exf4 {[%emt 0:05:24]} 18. Nxf4 {[%emt 0:02:02]} f6 {[%emt 0:09:15]} 19. e5 {[%emt 0:05:56]} f5 {[%emt 0:03:05]} 20. Nd5 {[%emt 0:01:15]} Qd8 {[%emt 0:01:14]} 21. Nf6 {[%emt 0:03:53]} Nd6 {[%emt 0:05:16]} 22. Rf3 {[%emt 0:17:10]} Nf7 {[%emt 0:08:01]} 23. Rh3 {[%emt 0:04:44]} h6 {[%emt 0:03:19]} 24. Qf4 {[%emt 0:06:55]} Bb7 {[%emt 0:06:55]} 25. Rg3 {[%emt 0:06:08]} Bc8 {[%emt 0:05:59]} 26. Bxf5 {[%emt 0:09:32]} Bxf5 {[%emt 0:01:51]} 27. Qxf5 {[%emt 0:00:16]} Ng5 {[%emt 0:00:17]} 28. Qf4 {[%emt 0:01:07]} Rf7 {[%emt 0:05:06]} 29. h4 {[%emt 0:01:20]} Ne6 {[%emt 0:00:13]} 30. Nh5+ {[%emt 0:02:05]} Kf8 {[%emt 0:01:27]} 31. Qxh6+ {[%emt 0:00:06]} Ke7 {[%emt 0:00:30]} 32. Rxg6 {[%emt 0:00:54]} Qd5 {[%emt 0:00:24]} 33. Nf6 {[%emt 0:00:58]} Qb7 {[%emt 0:01:49]} 34. d5 {[%emt 0:01:40]} Nf8 {[%emt 0:00:13]} 35. Rg7 {[%emt 0:01:13]} 1-0

[Event "11th Arad Open 2018"]
[Site "Arad"]
[Date "2018.08.06"]
[Round "3"]
[White "Macovei, Andrei"]
[Black "Olariu, Luca-Stefan"]
[Result "1-0"]
[ECO "B31"]
[WhiteElo "2394"]
[BlackElo "2019"]
[Annotator "NA"]
[PlyCount "117"]
[EventDate "2018.08.05"]
[EventType "swiss"]
[EventCountry "ROU"]
[SourceTitle "playchess.com"]
[Source "ChessBase"]
[SourceQuality "1"]
[TimeControl "40/5400+30:1800+30"]

1. e4 {[%emt 0:01:01]} c5 {[%emt 0:00:00]} 2. Nf3 {[%emt 0:00:01]} Nc6 {[%emt 0:00:00]} 3. Bb5 {[%emt 0:00:59]} g6 {[%emt 0:01:23]} 4. Bxc6 {[%emt 0:00:05]} dxc6 {[%emt 0:00:08]} 5. h3 {[%emt 0:00:16]} Bg7 {[%emt 0:00:09]} 6. d3 {[%emt 0:00:14]} e5 {[%emt 0:00:32]} 7. Nbd2 {[%emt 0:02:25]} Ne7 {[%emt 0:06:01]} 8. Nc4 {[%emt 0:02:37]} Qc7 {[%emt 0:00:43]} 9. Be3 {[%emt 0:01:45]} b6 {[%emt 0:00:11]} 10. O-O {[%emt 0:04:06]} Be6 {[%emt 0:01:19]} 11. a3 {[%emt 0:09:34]} O-O 12. b4 cxb4 {[%emt 0:06:57]} 13. axb4 {[%emt 0:00:32]} Rad8 {[%emt 0:02:25]} 14. Qe2 {[%emt 0:02:41]} h6 {[%emt 0:10:34]} 15. Bd2 {[%emt 0:13:06]} Bxc4 {[%emt 0:10:16]} 16. dxc4 {[%emt 0:00:31]} f5 {[%emt 0:00:39]} 17. Rad1 {[%emt 0:05:00]} Kh7 {[%emt 0:07:16]} 18. Rfe1 {[%emt 0:01:50]} Rde8 {[%emt 0:07:56]} 19. Be3 {[%emt 0:11:33]} fxe4 {[%emt 0:03:14]} 20. Nd2 {[%emt 0:00:19]} Nf5 {[%emt 0:01:49]} 21. Nxe4 {[%emt 0:01:01]} Nd4 {[%emt 0:02:39]} 22. Qg4 {[%emt 0:02:53]} Rd8 {[%emt 0:04:43]} 23. Rd2 {[%emt 0:02:17]} Nf5 {[%emt 0:01:04]} 24. c3 {[%emt 0:03:41]} Qf7 {[%emt 0:02:57]} 25. Bg5 {[%emt 0:11:05]} Rxd2 {[%emt 0:00:49]} 26. Bxd2 {[%emt 0:00:02]} Nd6 {[%emt 0:02:18]} 27. Be3 {[%emt 0:12:04]} Nxc4 {[%emt 0:09:27]} 28. Qh4 {[%emt 0:02:37]} Qd5 {[%emt 0:01:05]} 29. Bg5 {[%emt 0:00:06]} Nd6 {[%emt 0:04:15]} 30. c4 {[%emt 0:07:59]} Qd3 {[%emt 0:05:56]} 31. Nxd6 {[%emt 0:01:09]} Qxd6 {[%emt 0:00:16]} 32. c5 {[%emt 0:01:20]} bxc5 {[%emt 0:01:56]} 33. bxc5 {[%emt 0:00:01]} Qd4 {[%emt 0:03:01]} 34. Re4 {[%emt 0:00:49]} Qxc5 {[%emt 0:00:51]} 35. Be3 {[%emt 0:00:30]} Qd5 {[%emt 0:00:15]} 36. Rc4 {[%emt 0:00:40]} a6 {[%emt 0:02:39]} 37. Rc5 {[%emt 0:00:05]} Qd7 {[%emt 0:01:12]} 38. Qc4 {[%emt 0:00:10]} Rf6 {[%emt 0:01:02]} 39. Qxa6 {[%emt 0:00:05]} Qd1+ {[%emt 0:00:24]} 40. Kh2 {[%emt 0:00:38]} Qd6 {[%emt 0:00:22]} 41. Rc1 {[%emt 0:15:45]} e4+ {[%emt 0:15:52]} 42. Kg1 {[%emt 0:01:04]} Re6 {[%emt 0:00:21]} 43. Qa4 {[%emt 0:00:37]} Qd5 {[%emt 0:01:12]} 44. Rd1 {[%emt 0:00:39]} Qe5 {[%emt 0:06:51]} 45. Qb4 {[%emt 0:02:17]} Qc7 {[%emt 0:00:57]} 46. Rd2 {[%emt 0:01:33]} Qe7 {[%emt 0:02:47]} 47. Bc5 {[%emt 0:01:58]} Qf7 {[%emt 0:00:20]} 48. Be3 {[%emt 0:03:15]} Re8 {[%emt 0:01:38]} 49. Qd6 {[%emt 0:02:50]} Qe6 {[%emt 0:01:25]} 50. Qc7 {[%emt 0:03:29]} Re7 {[%emt 0:00:21]} 51. Qd8 {[%emt 0:00:20]} Re8 {[%emt 0:00:11]} 52. Qc7 {[%emt 0:00:47]} Re7 {[%emt 0:00:30]} 53. Qd8 {[%emt 0:01:27]} Re8 {[%emt 0:00:32]} 54. Qa5 {[%emt 0:01:00]} Re7 {[%emt 0:01:57]} 55. Qb4 {[%emt 0:00:26]} Re8 {[%emt 0:02:39]} 56. Rd6 {[%emt 0:01:45]} Qc8 {[%emt 0:01:04]} 57. Qc4 {[%emt 0:00:53]} c5 {[%emt 0:00:28]} 58. Qf7 {[%emt 0:00:30]} Qb8 {[%emt 0:00:34]} 59. Rxg6 {[%emt 0:00:29]} 1-0

[Event "11th Arad Open 2018"]
[Site "Arad"]
[Date "2018.08.06"]
[Round "3"]
[White "Peptan, Corina-Isabela"]
[Black "Talu, Mircea"]
[Result "1-0"]
[ECO "E12"]
[WhiteElo "2380"]
[BlackElo "2092"]
[Annotator "NA"]
[PlyCount "151"]
[EventDate "2018.08.05"]
[EventType "swiss"]
[EventCountry "ROU"]
[SourceTitle "playchess.com"]
[Source "ChessBase"]
[SourceQuality "1"]
[TimeControl "40/5400+30:1800+30"]

1. c4 {[%emt 0:00:00]} Nf6 {[%emt 0:00:14]} 2. Nf3 {[%emt 0:00:08]} b6 {[%emt 0:00:46]} 3. d4 {[%emt 0:01:07]} e6 {[%emt 0:00:18]} 4. a3 {[%emt 0:00:30]} Bb7 {[%emt 0:00:42]} 5. Nc3 {[%emt 0:00:05]} Be7 {[%emt 0:00:31]} 6. d5 {[%emt 0:00:33]} d6 {[%emt 0:09:38]} 7. e4 {[%emt 0:01:26]} e5 {[%emt 0:01:03]} 8. Be2 {[%emt 0:01:17]} Nbd7 {[%emt 0:07:52]} 9. Qc2 {[%emt 0:03:54]} Nf8 {[%emt 0:01:37]} 10. O-O {[%emt 0:00:48]} Ng6 {[%emt 0:00:21]} 11. b4 {[%emt 0:02:05]} O-O {[%emt 0:00:38]} 12. Na4 {[%emt 0:07:28]} c6 {[%emt 0:08:37]} 13. dxc6 {[%emt 0:01:23]} Bxc6 {[%emt 0:00:08]} 14. Nc3 {[%emt 0:00:08]} Qc7 {[%emt 0:01:26]} 15. Be3 {[%emt 0:13:33]} Rac8 {[%emt 0:06:31]} 16. Nd2 {[%emt 0:08:22]} Qb7 {[%emt 0:02:29]} 17. Qd3 {[%emt 0:03:01]} Bd7 {[%emt 0:05:37]} 18. a4 {[%emt 0:06:34]} h6 {[%emt 0:19:33]} 19. Rfb1 {[%emt 0:01:33]} Be6 {[%emt 0:03:03]} 20. a5 {[%emt 0:00:48]} Nd7 {[%emt 0:01:58]} 21. axb6 {[%emt 0:07:02]} axb6 {[%emt 0:00:51]} 22. Nd5 {[%emt 0:00:11]} Bg5 {[%emt 0:00:39]} 23. Bxg5 {[%emt 0:04:07]} hxg5 {[%emt 0:00:09]} 24. Qe3 {[%emt 0:01:42]} f6 {[%emt 0:10:28]} 25. Bh5 {[%emt 0:05:08]} Bxd5 {[%emt 0:00:42]} 26. Bxg6 {[%emt 0:00:35]} Be6 {[%emt 0:01:44]} 27. Qe2 {[%emt 0:05:54]} Rfd8 {[%emt 0:00:35]} 28. Bh5 {[%emt 0:00:23]} Qc6 {[%emt 0:03:03]} 29. Bg4 {[%emt 0:00:32]} Nf8 {[%emt 0:00:11]} 30. Rc1 {[%emt 0:06:19]} Ra8 {[%emt 0:03:13]} 31. h3 {[%emt 0:00:41]} Kf7 {[%emt 0:02:42]} 32. Qd3 {[%emt 0:01:23]} Ke7 {[%emt 0:01:37]} 33. Rxa8 {[%emt 0:09:48]} Rxa8 {[%emt 0:01:36]} 34. Nf1 {[%emt 0:00:03]} Bxg4 {[%emt 0:04:35]} 35. hxg4 {[%emt 0:00:02]} Ne6 {[%emt 0:00:57]} 36. Ne3 {[%emt 0:00:13]} Nd4 {[%emt 0:01:23]} 37. Nf5+ {[%emt 0:05:31]} Nxf5 {[%emt 0:00:10]} 38. gxf5 {[%emt 0:00:03]} Ra4 {[%emt 0:00:51]} 39. Qb3 {[%emt 0:02:12]} Qa8 {[%emt 0:00:23]} 40. c5 {[%emt 0:00:00]} dxc5 {[%emt 0:00:00]} 41. Qe6+ {[%emt 0:17:59]} Kf8 {[%emt 0:16:50]} 42. Qxb6 {[%emt 0:00:11]} Kg8 {[%emt 0:14:28]} 43. bxc5 {[%emt 0:00:20]} Ra1 {[%emt 0:00:49]} 44. Qb3+ {[%emt 0:05:13]} Kh7 {[%emt 0:00:24]} 45. Rb1 {[%emt 0:05:15]} Qa6 {[%emt 0:00:35]} 46. Rxa1 {[%emt 0:05:07]} Qxa1+ {[%emt 0:00:05]} 47. Kh2 {[%emt 0:00:03]} Qc1 {[%emt 0:00:37]} 48. Qe3 {[%emt 0:00:42]} Qc2 {[%emt 0:00:17]} 49. Kg3 {[%emt 0:01:01]} g6 {[%emt 0:00:48]} 50. fxg6+ {[%emt 0:01:53]} Kxg6 {[%emt 0:00:02]} 51. Kg4 {[%emt 0:00:29]} Qc4 {[%emt 0:01:12]} 52. Qf3 {[%emt 0:00:39]} Qxc5 {[%emt 0:00:22]} 53. Qf5+ {[%emt 0:00:00]} Kg7 {[%emt 0:00:35]} 54. Kh5 {[%emt 0:00:26]} Qe7 {[%emt 0:00:25]} 55. Qg6+ {[%emt 0:00:06]} Kh8 {[%emt 0:00:18]} 56. Kg4 {[%emt 0:00:56]} Qe6+ {[%emt 0:00:44]} 57. Qf5 {[%emt 0:00:16]} Qe7 {[%emt 0:00:30]} 58. Qc8+ {[%emt 0:00:29]} Kg7 {[%emt 0:00:04]} 59. f3 {[%emt 0:01:00]} Qf7 {[%emt 0:00:54]} 60. Kf5 {[%emt 0:00:38]} Qg6+ {[%emt 0:00:38]} 61. Ke6 {[%emt 0:00:11]} Qf7+ {[%emt 0:00:17]} 62. Kd6 {[%emt 0:00:32]} Qa2 {[%emt 0:00:38]} 63. Qd7+ {[%emt 0:00:55]} Kg6 {[%emt 0:00:22]} 64. Qe8+ {[%emt 0:00:21]} Kg7 {[%emt 0:00:21]} 65. Ke7 {[%emt 0:00:18]} Qxg2 {[%emt 0:00:50]} 66. Qf7+ {[%emt 0:00:35]} Kh6 {[%emt 0:00:02]} 67. Qxf6+ {[%emt 0:00:09]} Kh5 {[%emt 0:00:41]} 68. Ke6 {[%emt 0:00:33]} Qg3 {[%emt 0:00:35]} 69. Qf5 {[%emt 0:00:55]} Kh6 {[%emt 0:00:41]} 70. Kf6 {[%emt 0:00:29]} Qf4 {[%emt 0:00:33]} 71. Qxf4 {[%emt 0:00:18]} exf4 {[%emt 0:00:01]} 72. Kf5 {[%emt 0:00:14]} Kh5 {[%emt 0:00:05]} 73. e5 {[%emt 0:00:09]} Kh4 {[%emt 0:00:01]} 74. e6 {[%emt 0:00:22]} g4 {[%emt 0:00:06]} 75. Kxf4 {[%emt 0:00:56]} g3 {[%emt 0:00:06]} 76. e7 {[%emt 0:00:04]} 1-0

[Event "11th Arad Open 2018"]
[Site "Arad"]
[Date "2018.08.06"]
[Round "3"]
[White "Farkas, Gabor"]
[Black "Tarlev, Konstantin"]
[Result "1/2-1/2"]
[ECO "B49"]
[WhiteElo "2366"]
[BlackElo "2561"]
[Annotator "ChessBase"]
[PlyCount "80"]
[EventDate "2018.08.05"]
[EventType "swiss"]
[EventCountry "ROU"]
[SourceTitle "playchess.com"]
[Source "ChessBase"]
[SourceQuality "1"]
[TimeControl "40/5400+30:1800+30"]

1. e4 {[%emt 0:00:00]} c5 {[%emt 0:00:15]} 2. Nf3 {[%emt 0:00:00]} e6 {[%emt 0:00:05]} 3. d4 {[%emt 0:00:00]} cxd4 {[%emt 0:00:04]} 4. Nxd4 {[%emt 0:00:00]} Nc6 {[%emt 0:00:03]} 5. Nc3 {[%emt 0:03:45]} Qc7 {[%emt 0:00:29]} 6. Be3 {[%emt 0:05:34]} a6 {[%emt 0:02:42]} 7. Be2 {[%emt 0:06:37]} Nf6 {[%emt 0:00:42]} 8. a3 {[%emt 0:09:05]} Be7 {[%emt 0:02:25]} 9. f4 {[%emt 0:04:26]} d6 {[%emt 0:03:19]} 10. O-O {[%emt 0:02:35]} O-O {[%emt 0:00:06]} 11. Qe1 {[%emt 0:03:20]} e5 {[%emt 0:21:20]} 12. Nxc6 {[%emt 0:02:56]} Qxc6 {[%emt 0:02:10]} 13. fxe5 {[%emt 0:00:14]} dxe5 {[%emt 0:00:04]} 14. Qg3 {[%emt 0:00:16]} Nxe4 {[%emt 0:13:13]} 15. Nxe4 {[%emt 0:00:19]} Qxe4 {[%emt 0:00:03]} 16. Bd3 {[%emt 0:01:05]} Qc6 {[%emt 0:01:10]} 17. Qxe5 {[%emt 0:02:02]} Bf6 {[%emt 0:00:04]} 18. Qg3 {[%emt 0:06:24]} Re8 {[%emt 0:03:38]} 19. c3 {[%emt 0:04:22]} b5 {[%emt 0:10:19]} 20. Rf2 {[%emt 0:10:09]} Be5 {[%emt 0:22:25]} 21. Bf4 {[%emt 0:06:02]} Bxf4 {[%emt 0:00:59]} 22. Qxf4 {[%emt 0:00:49]} Ra7 {[%emt 0:00:14]} 23. Re2 {[%emt 0:07:29]} Rxe2 {[%emt 0:08:35]} 24. Bxe2 {[%emt 0:00:07]} Re7 {[%emt 0:00:01]} 25. Bf3 {[%emt 0:00:41]} Qb6+ {[%emt 0:00:37]} 26. Qd4 {[%emt 0:01:17]} Qxd4+ {[%emt 0:00:05]} 27. cxd4 {[%emt 0:00:05]} Rc7 {[%emt 0:00:06]} 28. Re1 {[%emt 0:01:12]} Kf8 {[%emt 0:00:06]} 29. Kf2 {[%emt 0:01:34]} b4 {[%emt 0:04:52]} 30. axb4 {[%emt 0:07:15]} Rc4 {[%emt 0:00:10]} 31. Ke3 {[%emt 0:03:42]} Rxb4 {[%emt 0:00:05]} 32. Rc1 {[%emt 0:00:52]} Bb7 {[%emt 0:03:42]} 33. Bxb7 {[%emt 0:01:51]} Rxb7 {[%emt 0:00:02]} 34. Rc2 {[%emt 0:00:11]} Ke7 {[%emt 0:00:04]} 35. g4 {[%emt 0:01:36]} Kd6 {[%emt 0:00:15]} 36. h4 {[%emt 0:00:41]} f6 {[%emt 0:01:44]} 37. h5 {[%emt 0:00:48]} Rb5 {[%emt 0:00:19]} 38. Rc8 {[%emt 0:04:11]} Rxb2 {[%emt 0:01:19]} 39. Ra8 {[%emt 0:00:13]} Kd5 {[%emt 0:00:34]} 40. Rxa6 {[%emt 0:00:00]} Rb3+ {[%emt 0:00:00] Ke4+ Ke5+} 1/2-1/2

[Event "11th Arad Open 2018"]
[Site "Arad"]
[Date "2018.08.06"]
[Round "3"]
[White "Dobre, Claudiu-Cristian"]
[Black "Aczel, Gergely"]
[Result "0-1"]
[ECO "A01"]
[WhiteElo "2356"]
[BlackElo "2551"]
[Annotator "ChessBase"]
[PlyCount "200"]
[EventDate "2018.08.05"]
[EventType "swiss"]
[EventCountry "ROU"]
[SourceTitle "playchess.com"]
[Source "ChessBase"]
[SourceQuality "1"]
[TimeControl "40/5400+30:1800+30"]

1. b3 {[%emt 0:00:00]} d5 {[%emt 0:00:00]} 2. e3 {[%emt 0:00:00]} Bf5 {[%emt 0:00:25]} 3. Bb2 {[%emt 0:00:00]} e6 {[%emt 0:00:18]} 4. Nf3 {[%emt 0:00:42]} Nf6 {[%emt 0:00:10]} 5. c4 {[%emt 0:00:54]} c6 {[%emt 0:01:45]} 6. Nc3 {[%emt 0:00:50]} Bd6 {[%emt 0:03:27]} 7. Be2 {[%emt 0:03:05]} h6 {[%emt 0:00:38]} 8. d3 {[%emt 0:13:18]} O-O {[%emt 0:00:32]} 9. O-O {[%emt 0:00:30]} Bh7 {[%emt 0:01:53]} 10. a3 {[%emt 0:08:45]} Nbd7 {[%emt 0:04:18]} 11. cxd5 {[%emt 0:05:01]} exd5 {[%emt 0:04:59]} 12. h3 {[%emt 0:04:04]} Re8 {[%emt 0:00:23]} 13. Re1 {[%emt 0:00:39]} a5 {[%emt 0:07:00]} 14. Bf1 {[%emt 0:29:49]} Bf8 {[%emt 0:00:36]} 15. Qc2 {[%emt 0:02:03]} Nb6 {[%emt 0:04:40]} 16. Rad1 {[%emt 0:03:33]} Qe7 {[%emt 0:08:05]} 17. Qc1 {[%emt 0:04:39]} Nfd7 {[%emt 0:02:20]} 18. d4 {[%emt 0:01:31]} Qd8 {[%emt 0:08:44]} 19. Nd2 {[%emt 0:01:50]} Nf6 {[%emt 0:03:20]} 20. Ne2 {[%emt 0:01:12]} Bd6 {[%emt 0:01:28]} 21. Nf4 {[%emt 0:01:01]} Nbd7 {[%emt 0:04:21]} 22. Bd3 {[%emt 0:03:18]} Bxf4 {[%emt 0:11:00]} 23. Bxh7+ {[%emt 0:00:10]} Nxh7 {[%emt 0:00:19]} 24. exf4 {[%emt 0:00:07]} Qb6 {[%emt 0:00:36]} 25. Qc3 {[%emt 0:00:32]} Nhf6 {[%emt 0:01:05]} 26. Nf3 {[%emt 0:09:01]} Ne4 {[%emt 0:01:13]} 27. Qd3 {[%emt 0:00:49]} a4 {[%emt 0:00:57]} 28. b4 {[%emt 0:00:27]} Qc7 {[%emt 0:15:16]} 29. Bc1 {[%emt 0:00:39]} Nb6 {[%emt 0:01:29]} 30. Ne5 {[%emt 0:01:39]} f6 {[%emt 0:00:08]} 31. Ng6 {[%emt 0:01:21]} Qd7 {[%emt 0:00:05]} 32. g4 {[%emt 0:01:18]} Nc4 {[%emt 0:01:14]} 33. f5 {[%emt 0:00:20]} Qc7 {[%emt 0:02:49]} 34. Nf4 {[%emt 0:00:30]} Nb2 {[%emt 0:02:11]} 35. Bxb2 {[%emt 0:03:15]} Qxf4 {[%emt 0:00:26]} 36. Re2 {[%emt 0:00:35]} Ng5 {[%emt 0:05:17]} 37. Bc1 {[%emt 0:00:22]} Qf3 {[%emt 0:01:54]} 38. Rxe8+ {[%emt 0:00:16]} Rxe8 {[%emt 0:00:01]} 39. Qxf3 {[%emt 0:00:05]} Nxf3+ {[%emt 0:00:05]} 40. Kf1 {[%emt 0:00:00]} Kf7 {[%emt 0:00:00]} 41. Be3 {[%emt 0:18:25]} Ng5 {[%emt 0:19:49]} 42. Bxg5 {[%emt 0:08:47]} hxg5 {[%emt 0:00:31]} 43. Re1 {[%emt 0:00:40]} Rxe1+ {[%emt 0:10:01]} 44. Kxe1 {[%emt 0:00:05]} Ke7 {[%emt 0:00:03]} 45. Kd2 {[%emt 0:00:24]} Kd6 {[%emt 0:00:01]} 46. Ke3 {[%emt 0:01:51]} Kc7 {[%emt 0:00:33]} 47. f4 {[%emt 0:01:27]} b6 {[%emt 0:01:41]} 48. fxg5 {[%emt 0:02:32]} fxg5 {[%emt 0:00:02]} 49. h4 {[%emt 0:01:25]} gxh4 {[%emt 0:01:03]} 50. g5 {[%emt 0:00:05]} Kd7 {[%emt 0:01:55]} 51. Kf2 {[%emt 0:00:37]} Ke8 {[%emt 0:01:02]} 52. Kg2 {[%emt 0:00:28]} Ke7 {[%emt 0:00:10]} 53. Kh3 {[%emt 0:00:37]} c5 {[%emt 0:00:08]} 54. bxc5 {[%emt 0:00:25]} bxc5 {[%emt 0:00:01]} 55. dxc5 {[%emt 0:00:08]} d4 {[%emt 0:00:05]} 56. c6 {[%emt 0:00:51]} d3 {[%emt 0:00:03]} 57. f6+ {[%emt 0:00:50]} gxf6 {[%emt 0:00:05]} 58. gxf6+ {[%emt 0:00:14]} Kxf6 {[%emt 0:00:17]} 59. c7 {[%emt 0:00:04]} d2 {[%emt 0:00:05]} 60. c8=Q {[%emt 0:00:02]} d1=Q {[%emt 0:00:07]} 61. Qc6+ {[%emt 0:00:43]} Ke5 {[%emt 0:00:41]} 62. Qe8+ {[%emt 0:01:17]} Kf4 {[%emt 0:00:13]} 63. Qf8+ {[%emt 0:00:31]} Ke3 {[%emt 0:00:05]} 64. Kxh4 {[%emt 0:00:34]} Kd3 {[%emt 0:03:13]} 65. Kg3 {[%emt 0:00:43]} Qg1+ {[%emt 0:00:10]} 66. Kh3 {[%emt 0:00:05]} Qh1+ {[%emt 0:02:12]} 67. Kg3 {[%emt 0:00:20]} Qg1+ {[%emt 0:00:04]} 68. Kh4 {[%emt 0:00:51]} Qh2+ {[%emt 0:00:25]} 69. Kg5 {[%emt 0:00:25]} Qg3+ {[%emt 0:00:09]} 70. Kh5 {[%emt 0:00:08]} Qe5+ {[%emt 0:00:38]} 71. Kg4 {[%emt 0:00:39]} Kc2 {[%emt 0:00:23]} 72. Kf3 {[%emt 0:00:58]} Qd4 {[%emt 0:00:57]} 73. Ke2 {[%emt 0:00:33]} Qe4+ {[%emt 0:00:09]} 74. Kf1 {[%emt 0:00:28]} Qe3 {[%emt 0:01:59]} 75. Qb4 {[%emt 0:00:26]} Qb3 {[%emt 0:00:09]} 76. Qd6 {[%emt 0:00:31]} Qf3+ {[%emt 0:00:49]} 77. Ke1 {[%emt 0:00:25]} Qe3+ {[%emt 0:00:02]} 78. Kf1 {[%emt 0:00:03]} Kb2 {[%emt 0:00:14]} 79. Qb4+ {[%emt 0:01:06]} Qb3 {[%emt 0:00:03]} 80. Qc5 {[%emt 0:00:23]} Qxa3 {[%emt 0:00:34]} 81. Qe5+ {[%emt 0:00:41]} Qc3 {[%emt 0:00:22]} 82. Qb5+ {[%emt 0:00:04]} Qb3 {[%emt 0:00:22]} 83. Qe5+ {[%emt 0:00:26]} Kc2 {[%emt 0:00:24]} 84. Qh2+ {[%emt 0:00:45]} Kb1 {[%emt 0:00:35]} 85. Qh7+ {[%emt 0:00:19]} Kb2 {[%emt 0:01:11]} 86. Qh2+ {[%emt 0:00:48]} Qc2 {[%emt 0:00:20]} 87. Qe5+ {[%emt 0:00:11]} Kb1 {[%emt 0:01:26]} 88. Qa5 {[%emt 0:00:45]} Qc1+ {[%emt 0:00:50]} 89. Kg2 {[%emt 0:00:13]} a3 {[%emt 0:00:07]} 90. Kf3 {[%emt 0:00:57]} Qc6+ {[%emt 0:00:55]} 91. Kf4 {[%emt 0:00:30]} a2 {[%emt 0:00:21]} 92. Qb4+ {[%emt 0:00:21]} Kc2 {[%emt 0:00:06]} 93. Qd4 {[%emt 0:00:36]} Qc3 {[%emt 0:02:25]} 94. Qa4+ {[%emt 0:00:12]} Kb2 {[%emt 0:00:14]} 95. Qb5+ {[%emt 0:00:45]} Ka3 {[%emt 0:00:01]} 96. Qa6+ {[%emt 0:00:31]} Kb3 {[%emt 0:00:03]} 97. Kg5 {[%emt 0:00:23]} a1=Q {[%emt 0:00:15]} 98. Qb5+ {[%emt 0:00:15]} Qb4 {[%emt 0:00:11]} 99. Qd3+ {[%emt 0:00:22]} Qac3 {[%emt 0:00:06]} 100. Qd5+ {[%emt 0:00:47]} Kb2 {[%emt 0:00:11]} 0-1

[Event "11th Arad Open 2018"]
[Site "Arad"]
[Date "2018.08.06"]
[Round "3"]
[White "Toma, Radu-Cristian"]
[Black "Ungureanu, Sandu"]
[Result "1-0"]
[ECO "A06"]
[WhiteElo "2354"]
[BlackElo "2083"]
[Annotator "NA"]
[PlyCount "49"]
[EventDate "2018.08.05"]
[EventType "swiss"]
[EventCountry "ROU"]
[SourceTitle "playchess.com"]
[Source "ChessBase"]
[SourceQuality "1"]
[TimeControl "40/5400+30:1800+30"]

1. Nf3 {[%emt 0:03:08]} d5 {[%emt 0:07:47]} 2. e3 {[%emt 0:00:55]} c5 {[%emt 0:00:08]} 3. b3 {[%emt 0:02:58]} Nc6 {[%emt 0:02:44]} 4. Bb5 {[%emt 0:01:17]} Qc7 {[%emt 0:01:56]} 5. c4 {[%emt 0:02:42]} dxc4 {[%emt 0:02:20]} 6. bxc4 {[%emt 0:03:28]} Bg4 {[%emt 0:01:56]} 7. h3 {[%emt 0:06:14]} Bxf3 {[%emt 0:01:08]} 8. Qxf3 {[%emt 0:00:13]} a6 {[%emt 0:00:55]} 9. Ba4 {[%emt 0:01:05]} e6 {[%emt 0:01:36]} 10. O-O {[%emt 0:01:06]} Nf6 11. d4 {[%emt 0:26:29]} Rd8 {[%emt 0:08:53]} 12. Nc3 {[%emt 0:11:35]} cxd4 {[%emt 0:03:48]} 13. Rb1 {[%emt 0:04:06]} Nd7 {[%emt 0:01:22]} 14. exd4 {[%emt 0:07:52]} b5 {[%emt 0:04:33]} 15. cxb5 {[%emt 0:00:59]} Nxd4 {[%emt 0:00:06]} 16. Qg4 {[%emt 0:02:56]} Qxc3 {[%emt 0:01:18]} 17. Bb2 {[%emt 0:00:50]} Qa5 {[%emt 0:00:39]} 18. Qxd4 {[%emt 0:09:04]} Nb6 {[%emt 0:00:05]} 19. Qxb6 {[%emt 0:04:17]} Qxb6 {[%emt 0:02:00]} 20. bxa6+ {[%emt 0:00:03]} Rd7 {[%emt 0:00:15]} 21. Rfd1 {[%emt 0:06:58]} Qxa6 {[%emt 0:04:46]} 22. Bxd7+ {[%emt 0:00:42]} Ke7 {[%emt 0:00:04]} 23. a4 {[%emt 0:00:11]} f5 {[%emt 0:02:00]} 24. Bb5 {[%emt 0:00:21]} Qb7 {[%emt 0:00:50]} 25. Be5 {[%emt 0:00:36]} 1-0

[Event "11th Arad Open 2018"]
[Site "Arad"]
[Date "2018.08.06"]
[Round "3"]
[White "Posedaru, Bogdan"]
[Black "Jianu, Vlad-Cristian"]
[Result "1/2-1/2"]
[ECO "E35"]
[WhiteElo "2326"]
[BlackElo "2542"]
[Annotator "ChessBase"]
[PlyCount "69"]
[EventDate "2018.08.05"]
[EventType "swiss"]
[EventCountry "ROU"]
[SourceTitle "playchess.com"]
[Source "ChessBase"]
[SourceQuality "1"]
[TimeControl "40/5400+30:1800+30"]

1. d4 {[%emt 0:00:29]} Nf6 {[%emt 0:00:00]} 2. c4 {[%emt 0:00:08]} e6 {[%emt 0:00:00]} 3. Nc3 {[%emt 0:00:06]} Bb4 {[%emt 0:00:14]} 4. Qc2 {[%emt 0:00:06]} d5 {[%emt 0:01:09]} 5. cxd5 {[%emt 0:00:07]} exd5 {[%emt 0:00:06]} 6. Bg5 {[%emt 0:00:26]} h6 {[%emt 0:00:08]} 7. Bh4 {[%emt 0:00:48]} c5 {[%emt 0:00:16]} 8. dxc5 {[%emt 0:03:10]} O-O {[%emt 0:00:46]} 9. e3 {[%emt 0:03:04]} Be6 {[%emt 0:01:32]} 10. Nf3 {[%emt 0:00:46]} Nbd7 {[%emt 0:00:15]} 11. a3 {[%emt 0:02:30]} Bxc5 {[%emt 0:07:46]} 12. Be2 {[%emt 0:08:52]} Rc8 {[%emt 0:05:46]} 13. O-O {[%emt 0:02:08]} Be7 {[%emt 0:04:49]} 14. Rac1 {[%emt 0:07:51]} g5 {[%emt 0:20:56]} 15. Bg3 {[%emt 0:00:23]} Ne4 {[%emt 0:00:10]} 16. Qd3 {[%emt 0:01:57]} Ndc5 {[%emt 0:03:59]} 17. Qd1 {[%emt 0:00:06]} Nxg3 {[%emt 0:08:46]} 18. hxg3 {[%emt 0:00:06]} Bf6 {[%emt 0:04:38]} 19. Nd4 {[%emt 0:01:18]} Bxd4 {[%emt 0:05:42]} 20. exd4 {[%emt 0:00:23]} Ne4 {[%emt 0:00:07]} 21. Qd3 {[%emt 0:05:00]} Nxc3 {[%emt 0:07:01]} 22. Rxc3 {[%emt 0:03:23]} Rxc3 {[%emt 0:00:12]} 23. Qxc3 {[%emt 0:01:40]} Qf6 {[%emt 0:04:19]} 24. Qb4 {[%emt 0:27:11]} Rc8 {[%emt 0:04:45]} 25. Qxb7 {[%emt 0:03:16]} Qxd4 {[%emt 0:04:43]} 26. Rd1 {[%emt 0:02:27]} Qe5 {[%emt 0:03:24]} 27. Bf1 {[%emt 0:10:43]} Rb8 {[%emt 0:01:03]} 28. Qxa7 {[%emt 0:00:21]} Rxb2 {[%emt 0:00:09]} 29. a4 {[%emt 0:02:40]} Ra2 {[%emt 0:07:35]} 30. a5 {[%emt 0:00:49]} d4 {[%emt 0:00:27]} 31. Qxd4 {[%emt 0:04:06]} Qxd4 {[%emt 0:00:44]} 32. Rxd4 {[%emt 0:00:05]} Rxa5 {[%emt 0:00:04]} 33. Bc4 {[%emt 0:01:03]} Ra1+ {[%emt 0:02:01]} 34. Kh2 {[%emt 0:00:05]} Bxc4 {[%emt 0:00:27]} 35. Rxc4 1/2-1/2